bitfinex/quotes_ETHUSD_20251017
["timestamp","ask_amount","ask_price","bid_price","bid_amount"]
[1760681851943,3.12098423,3903.2,3903.1,0.2402]
[1760681853194,2.99298423,3903.2,3903.1,3.0824978]
[1760681853478,0.40198423,3903.2,3903.1,2.81512946]
[1760681853679,0.40198423,3903.2,3903.1,4.54312946]
[1760681853884,0.51,3903.3,3903.2,2.5620004]
[1760681854048,0.002,3903.4,3903.2,2.9292004]
[1760681854252,0.002,3903.4,3903.3,2.81399555]
[1760681854453,0.002,3903.4,3903.3,2.80113477]
[1760681855861,0.002,3903.4,3903.3,5.1755949]
[1760681856203,0.002,3904.2,3903.7,4.92327225]
[1760681856204,1e-08,3903.8,3903.7,4.92327225]
[1760681856406,1e-08,3903.8,3903.7,5.03817635]
[1760681856559,1e-08,3903.8,3903.7,5.27737635]
[1760681857412,1e-08,3903.8,3903.7,3.54937635]
[1760681857765,1e-08,3903.8,3903.7,2.56167225]
[1760681859293,1e-08,3903.8,3903.5,2.56174565]
[1760681859622,1e-08,3903.8,3903.2,2.5619669]
[1760681859623,1e-08,3903.8,3903.2,2.56193966]
[1760681859911,1e-08,3903.8,3903.1,0.001]
[1760681860190,0.03202009,3903.8,3903.1,2.56306004]
[1760681860389,0.03202009,3903.8,3903.4,2.56181447]
[1760681860962,0.03202009,3903.8,3903.4,0.51248745]
[1760681861291,1e-08,3903.8,3903.1,2.56300701]
[1760681861463,0.03202009,3903.8,3903.2,2.56194181]
[1760681861665,0.03202009,3903.8,3903.3,2.5619136]
[1760681862170,0.03202009,3903.8,3903.4,2.56185692]
[1760681862484,0.03202009,3903.8,3903.5,2.56179832]
[1760681862685,0.03202009,3903.8,3903.1,0.2402]
[1760681862686,0.03202009,3903.8,3903.3,2.56187467]
[1760681863495,0.03202009,3903.8,3903.4,2.56186655]
[1760681863795,1e-08,3903.8,3903.7,2.56167225]
[1760681864176,1e-08,3903.8,3903.7,2.80087225]
[1760681870216,1e-08,3903.8,3903.7,2.56167225]
[1760681871291,1e-08,3903.8,3903.7,2.80087225]
[1760681871631,1e-08,3903.8,3903.7,3.40118902]
[1760681871841,1e-08,3903.8,3903.7,3.16198902]
[1760681875143,1e-08,3903.8,3903.7,2.56167225]
[1760681878303,0.40182386,3903.8,3903.7,2.56167225]
[1760681878703,10.97616009,3903.8,3903.3,0.001]
[1760681878939,9.302346,3903.5,3903.3,0.001]
[1760681879121,1.13505796,3903.4,3903.3,0.001]
[1760681879324,3.02759249,3903.4,3903.3,0.001]
[1760681879529,4.2900004,3903.2,3903.1,0.001]
[1760681879700,5.3516,3903.1,3902.5,0.001]
[1760681880037,7.55415833,3903.0,3902.5,0.001]
[1760681880206,4.96,3903.0,3902.5,0.001]
[1760681880547,10.09752833,3903.0,3902.5,0.001]
[1760681880710,10.06550169,3903.0,3902.5,0.001]
[1760681881352,23.21724669,3903.0,3902.5,0.001]
[1760681881857,21.75836869,3903.0,3902.5,0.001]
[1760681882199,28.21780469,3903.0,3902.5,0.001]
[1760681882403,24.45576169,3903.0,3902.5,0.001]
[1760681882646,20.45887069,3903.0,3902.5,0.001]
[1760681883319,23.06855169,3903.0,3902.5,0.001]
[1760681884313,30.32055969,3903.0,3902.5,0.001]
[1760681884842,17.20892469,3903.0,3902.5,0.001]
[1760681885003,8.411954,3903.0,3902.5,0.001]
[1760681885205,2.59,3903.0,3902.5,0.001]
[1760681885422,2.62202664,3903.0,3902.5,0.001]
[1760681885624,3.06422664,3903.0,3902.5,0.001]
[1760681886562,2.62202664,3903.0,3902.5,0.001]
[1760681887457,4.35002664,3903.0,3902.5,0.001]
[1760681887656,5.12564822,3903.0,3902.5,0.001]
[1760681887827,10.86849327,3903.0,3902.5,0.001]
[1760681888026,22.20763227,3903.0,3902.5,0.001]
[1760681888370,17.08116627,3903.0,3902.5,0.001]
[1760681888724,16.87739227,3903.0,3902.5,0.001]
[1760681889056,20.89918527,3903.0,3902.5,0.001]
[1760681889226,5.53582158,3903.0,3902.5,0.001]
[1760681889422,8.59397158,3903.0,3902.5,0.001]
[1760681889655,5.53582158,3903.0,3902.5,0.001]
[1760681889823,8.09795327,3903.0,3902.5,0.001]
[1760681890020,19.19046327,3903.0,3902.5,0.001]
[1760681890454,13.95769327,3903.0,3902.5,0.001]
[1760681891037,8.09795327,3903.0,3902.5,0.001]
[1760681891249,19.44430027,3903.0,3902.5,0.001]
[1760681891464,14.84133327,3903.0,3902.5,0.001]
[1760681891663,11.15595327,3903.0,3902.5,0.001]
[1760681892464,5.09362158,3903.0,3902.5,0.001]
[1760681892663,5.09362158,3903.0,3902.5,0.2422]
[1760681892664,1.728,3903.0,3902.5,0.2422]
[1760681892880,4.35202664,3903.0,3902.5,0.001]
[1760681893048,9.15449964,3903.0,3902.5,0.001]
[1760681893374,11.43413069,3903.0,3902.5,0.001]
[1760681894278,17.64785269,3903.0,3902.5,0.001]
[1760681894461,16.40449456,3903.0,3902.5,0.001]
[1760681894663,14.84808587,3903.0,3902.5,0.001]
[1760681894863,17.44008587,3903.0,3902.5,0.001]
[1760681895372,35.50825087,3903.0,3902.5,0.001]
[1760681895581,33.74091909,3903.0,3902.5,0.001]
[1760681895760,28.15056809,3903.0,3902.5,0.001]
[1760681895958,34.62056809,3903.0,3902.5,0.001]
[1760681896284,43.24444209,3903.0,3902.5,0.001]
[1760681896950,41.04405609,3903.0,3902.5,0.001]
[1760681897149,38.75210209,3903.0,3902.5,0.001]
[1760681897350,40.37963709,3903.0,3902.5,0.001]
[1760681898281,16.97806209,3903.0,3902.5,0.001]
[1760681898460,43.24444209,3903.0,3902.5,0.001]
[1760681902356,16.97806209,3903.0,3902.5,0.001]
[1760681902559,43.24444209,3903.0,3902.5,0.001]
[1760681904398,31.19050562,3902.4,3902.3,0.001]
[1760681904689,35.42956188,3902.4,3902.3,0.001]
[1760681904888,32.79742788,3902.4,3902.3,0.001]
[1760681905094,32.55443045,3902.4,3902.3,0.001]
[1760681905492,37.11196945,3902.4,3902.3,0.001]
[1760681909807,37.2147791,3902.4,3902.3,0.001]
[1760681910517,29.46309674,3901.5,3901.4,0.001]
[1760681910678,47.1758072,3901.5,3901.4,0.001]
[1760681910877,47.6540072,3901.5,3901.4,0.001]
[1760681911194,29.46342527,3901.0,3899.8,0.2412]
[1760681911388,36.16202358,3901.0,3899.8,0.2412]
[1760681911584,36.59022358,3901.0,3898.6,3.43355469]
[1760681911793,36.59022358,3901.0,3898.8,2.56489045]
[1760681911988,36.59022358,3901.0,3899.4,0.2412]
[1760681912188,36.99253369,3901.0,3899.4,0.2412]
[1760681912608,37.23373369,3901.0,3899.4,0.2412]
[1760681913877,44.74842401,3901.0,3899.4,0.2412]
[1760681914084,44.74842401,3901.0,3899.1,0.2412]
[1760681914293,44.74760948,3901.0,3898.6,0.86853649]
[1760681914495,44.74760948,3901.0,3899.5,0.2412]
[1760681914710,44.7485029,3901.0,3899.5,0.2412]
[1760681915390,44.23381258,3901.0,3899.5,0.2412]
[1760681915593,40.47591916,3901.0,3898.6,3.4335527]
[1760681915790,44.23291916,3901.0,3899.7,0.2412]
[1760681916016,44.23381258,3901.0,3899.7,0.2412]
[1760681916914,43.99161258,3901.0,3899.9,0.2412]
[1760681917818,43.99161258,3901.0,3899.5,0.2412]
[1760681918312,43.99161258,3901.0,3899.7,0.2412]
[1760681918517,43.99161258,3901.0,3898.9,2.56479861]
[1760681918699,43.99161258,3901.0,3899.1,0.2412]
[1760681919615,44.50645692,3901.0,3899.1,0.2412]
[1760681919785,18.24007692,3901.0,3899.1,0.2412]
[1760681919992,0.00105124,3899.4,3898.9,0.2412]
[1760681920188,1.728,3899.1,3898.6,0.86853649]
[1760681920403,2.601,3899.1,3898.6,0.86853649]
[1760681920825,4.329,3899.1,3899.0,0.3893]
[1760681921703,1.728,3899.1,3899.0,0.3893]
[1760681921923,0.40237255,3899.1,3899.0,0.3893]
[1760681922292,1.44937255,3899.1,3899.0,0.3893]
[1760681922721,1.48143123,3899.1,3899.0,0.3893]
[1760681923118,1.48143123,3899.1,3899.0,0.1481]
[1760681923320,3.20943123,3899.1,3899.0,0.1481]
[1760681923519,5.77412564,3899.1,3899.0,0.1481]
[1760681923703,5.74206696,3899.1,3899.0,0.1481]
[1760681924301,5.74206696,3899.1,3898.6,1.10973649]
[1760681924302,1.728,3898.9,3898.6,0.86853649]
[1760681924627,8.170836,3898.7,3898.6,0.86853649]
[1760681924829,3.786532,3898.7,3898.6,0.86853649]
[1760681924997,8.09754121,3898.7,3898.6,0.86853649]
[1760681925195,8.46791857,3898.7,3898.6,0.86853649]
[1760681925425,32.67576657,3898.7,3898.6,0.86853649]
[1760681925722,23.19821057,3898.7,3898.6,0.86853649]
[1760681926118,10.12743732,3898.7,3898.6,0.86853649]
[1760681926323,4.73143932,3898.7,3898.6,1.10973649]
[1760681926512,7.70385132,3898.7,3898.6,1.10973649]
[1760681926698,5.10285132,3898.7,3898.6,1.10973649]
[1760681927040,14.44185132,3898.7,3898.6,1.10973649]
[1760681927219,9.13043932,3898.7,3898.6,0.86853649]
[1760681927429,21.40155586,3898.7,3898.6,0.86853649]
[1760681927738,14.89028532,3898.7,3898.6,0.86853649]
[1760681928436,14.43284932,3898.7,3898.6,0.86853649]
[1760681928934,18.44120744,3898.7,3898.6,0.86853649]
[1760681929231,19.07480744,3898.7,3898.6,0.86853649]
[1760681929527,21.4792259,3898.7,3898.6,0.86853649]
[1760681929696,20.8771249,3898.7,3898.6,0.86853649]
[1760681929898,17.2255219,3898.7,3898.6,0.86853649]
[1760681930337,17.59722344,3898.7,3898.6,0.86853649]
[1760681930539,23.83150012,3898.7,3898.6,0.86853649]
[1760681930834,22.32962512,3898.7,3898.6,0.86853649]
[1760681931205,21.67896012,3898.7,3898.6,0.86853649]
[1760681931404,27.64694012,3898.7,3898.6,0.86853649]
[1760681931807,26.36444012,3898.7,3898.6,0.86853649]
[1760681932536,20.19186358,3898.7,3898.6,0.86853649]
[1760681932735,3.17140058,3898.7,3898.6,0.86853649]
[1760681932920,4.328,3898.7,3898.6,0.86853649]
[1760681933123,7.19862532,3898.7,3898.6,0.86853649]
[1760681933520,2.13043532,3898.7,3898.6,1.10973649]
[1760681933847,3.00243532,3898.7,3898.6,1.10973649]
[1760681934048,0.40243532,3898.7,3898.6,1.10973649]
[1760681934214,3.00243532,3898.7,3898.6,0.86853649]
[1760681934414,3.00243532,3898.7,3898.6,1.10973649]
[1760681934651,2.6,3898.7,3898.6,1.10973649]
[1760681935231,0.40238677,3899.6,3898.6,1.10973649]
[1760681935555,4.60557677,3899.6,3899.5,0.1481]
[1760681935756,5.87669347,3899.6,3899.5,0.1481]
[1760681935913,5.87669347,3899.6,3898.6,0.86853649]
[1760681935914,2.56456287,3899.3,3898.6,1.10973649]
[1760681936245,2.174872,3898.8,3898.6,0.86853649]
[1760681936447,2.6,3898.7,3898.6,0.86853649]
[1760681937150,7.581264,3898.7,3898.6,0.86853649]
[1760681937324,8.63622645,3898.7,3898.6,0.86853649]
[1760681937535,13.96104599,3898.7,3898.6,0.86853649]
[1760681937756,12.56808099,3898.7,3898.6,0.86853649]
[1760681937926,10.41234099,3898.7,3898.6,0.86853649]
[1760681938120,7.84738345,3898.7,3898.6,0.86853649]
[1760681938736,9.66474545,3898.7,3898.6,0.86853649]
[1760681938948,7.72203545,3898.7,3898.6,0.86853649]
[1760681939535,7.72203545,3898.7,3898.6,0.86953649]
[1760681939926,17.87670899,3898.7,3898.6,0.86953649]
[1760681940560,15.31175145,3898.7,3898.6,0.86953649]
[1760681940867,14.96598945,3898.7,3898.6,0.86953649]
[1760681941066,17.51744699,3898.7,3898.6,0.86953649]
[1760681941633,18.15104699,3898.7,3898.6,0.86953649]
[1760681941832,35.29839999,3898.7,3898.6,0.86953649]
[1760681942047,19.10991799,3898.7,3898.6,0.86953649]
[1760681942259,21.70991799,3898.7,3898.6,0.86953649]
[1760681942459,22.16041799,3898.7,3898.6,0.86953649]
[1760681942834,29.58791799,3898.7,3898.6,0.86953649]
[1760681943034,21.18965399,3898.7,3898.6,0.86953649]
[1760681943240,19.86443099,3898.7,3898.6,0.86953649]
[1760681943831,13.89127499,3898.7,3898.6,0.86953649]
[1760681944157,12.81640299,3898.7,3898.6,0.86953649]
[1760681944360,13.26690299,3898.7,3898.6,0.86953649]
[1760681945071,22.71741499,3898.7,3898.6,0.86953649]
[1760681945833,9.03201999,3898.7,3898.6,0.86953649]
[1760681946050,25.66659999,3898.7,3898.6,0.86953649]
[1760681946552,23.75357199,3898.7,3898.6,0.86953649]
[1760681947070,15.12836199,3898.7,3898.6,0.86953649]
[1760681947254,11.51644599,3898.7,3898.6,0.86953649]
[1760681947570,7.78369245,3898.7,3898.6,0.86953649]
[1760681947774,10.34864999,3898.7,3898.6,0.86953649]
[1760681947971,10.16637299,3898.7,3898.6,0.86953649]
[1760681948274,7.76412445,3898.7,3898.6,0.86953649]
[1760681948453,2.96730031,3898.8,3898.6,0.86953649]
[1760681948454,0.40240405,3898.8,3898.6,0.86953649]
[1760681948783,1.728,3898.7,3898.6,0.86953649]
[1760681948980,2.599,3898.7,3898.6,1.11073649]
[1760681949142,2.6,3898.7,3898.6,1.11073649]
[1760681950385,0.40345582,3899.3,3898.8,2.56483536]
[1760681950386,0.128,3899.1,3898.8,2.56483536]
[1760681950541,0.128,3899.1,3898.9,0.2412]
[1760681950542,2.599,3899.0,3898.9,0.2412]
[1760681950742,2.599,3899.0,3898.9,2.80602597]
[1760681950979,2.599,3899.0,3898.9,0.2412]
[1760681951345,2.599,3899.0,3898.6,0.86953649]
[1760681951693,0.16006032,3898.9,3898.7,0.2412]
[1760681951844,0.16006032,3898.9,3898.8,0.2412]
[1760681953142,0.128,3898.9,3898.8,2.80609176]
[1760681953576,0.16006032,3898.9,3898.8,0.2412]
[1760681953778,0.56239984,3898.9,3898.8,0.2412]
[1760681954544,0.56239984,3898.9,3898.6,0.86953649]
[1760681954779,0.56239984,3898.9,3898.8,0.2412]
[1760681955645,0.56239984,3898.9,3898.8,2.80609176]
[1760681955841,0.56239984,3898.9,3898.6,0.86953649]
[1760681956082,18.108831,3898.8,3898.6,0.86953649]
[1760681956249,12.9144795,3898.7,3898.6,0.86953649]
[1760681956445,12.88241754,3898.7,3898.6,0.86953649]
[1760681956682,21.13025209,3898.3,3898.2,0.001]
[1760681956896,22.06034809,3898.3,3898.2,0.001]
[1760681957192,16.88198636,3898.3,3898.2,0.001]
[1760681957356,16.17428366,3898.3,3898.2,0.001]
[1760681957560,5.43371466,3898.3,3898.2,0.001]
[1760681957788,1.1187633,3898.3,3898.2,0.001]
[1760681957995,5.39790791,3898.3,3898.2,0.001]
[1760681958160,8.38287778,3898.3,3898.2,0.001]
[1760681958360,21.79778378,3898.3,3898.2,0.001]
[1760681958595,11.00332512,3898.3,3898.2,0.001]
[1760681959464,8.34106312,3898.3,3898.2,0.001]
[1760681959761,9.21541836,3898.3,3898.2,0.001]
[1760681960162,10.94341836,3898.3,3898.2,0.001]
[1760681960362,14.37125736,3898.3,3898.2,0.001]
[1760681961597,8.22639036,3898.3,3898.2,0.001]
[1760681961896,20.92304436,3898.3,3898.2,0.001]
[1760681962100,19.40209136,3898.3,3898.2,0.001]
[1760681962494,8.85999036,3898.3,3898.2,0.001]
[1760681962796,22.74572036,3898.3,3898.2,0.001]
[1760681963094,22.49081136,3898.3,3898.2,0.001]
[1760681963294,21.96180836,3898.3,3898.2,0.001]
[1760681963494,8.85999036,3898.3,3898.2,0.001]
[1760681963701,24.78503136,3898.3,3898.2,0.001]
[1760681963888,21.19162936,3898.3,3898.2,0.001]
[1760681964200,27.31974836,3898.3,3898.2,0.001]
[1760681964605,30.23687836,3898.3,3898.2,0.001]
[1760681964810,25.75681136,3898.3,3898.2,0.001]
[1760681965710,31.89111836,3898.3,3898.2,0.001]
[1760681966591,31.89111836,3898.3,3897.8,0.001]
[1760681966592,2.56548397,3897.9,3897.8,0.001]
[1760681966929,23.97130381,3897.4,3897.3,0.0039789]
[1760681967109,21.80804481,3897.4,3897.3,0.0039789]
[1760681967424,11.89873233,3897.4,3897.3,0.0039789]
[1760681967708,14.91086762,3897.4,3897.3,0.0039789]
[1760681967924,12.81035362,3897.4,3897.3,0.0039789]
[1760681968481,13.44384825,3897.4,3897.3,0.0039789]
[1760681968680,26.42041325,3897.4,3897.3,0.0039789]
[1760681968881,24.84172425,3897.4,3897.3,0.0039789]
[1760681969206,13.42376925,3897.4,3897.3,0.0039789]
[1760681969813,25.91917225,3897.4,3897.3,0.0039789]
[1760681970010,26.38877225,3897.4,3897.3,0.0039789]
[1760681970513,18.99937691,3897.4,3897.3,0.0039789]
[1760681970706,32.03703693,3897.4,3897.3,0.0039789]
[1760681970908,28.74344793,3897.4,3897.3,0.0039789]
[1760681971109,15.45063593,3897.4,3897.3,0.0039789]
[1760681971600,15.92023593,3897.4,3897.3,0.0039789]
[1760681971816,16.12628693,3897.4,3897.3,0.0039789]
[1760681972022,18.74128693,3897.4,3897.3,0.0039789]
[1760681972930,20.59101793,3897.4,3897.3,0.0039789]
[1760681973317,21.06061793,3897.4,3897.3,0.0039789]
[1760681973731,20.70849093,3897.4,3897.3,0.0039789]
[1760681973909,22.09460493,3897.4,3897.3,0.0039789]
[1760681974326,22.09460493,3897.4,3897.3,0.0049789]
[1760681974902,13.43910291,3897.4,3897.3,0.0049789]
[1760681975142,12.81813659,3897.4,3897.3,0.0049789]
[1760681975440,12.42471159,3897.4,3897.3,0.0049789]
[1760681975802,18.79562159,3897.4,3897.3,0.0049789]
[1760681976209,12.31793859,3897.4,3897.3,0.0049789]
[1760681976413,12.78753859,3897.4,3897.3,0.0049789]
[1760681976612,12.31793859,3897.4,3897.3,0.0049789]
[1760681976914,16.53591859,3897.4,3897.3,0.0049789]
[1760681977239,16.63884147,3897.4,3897.3,0.0049789]
[1760681977453,17.74204147,3897.4,3897.3,0.0049789]
[1760681977810,29.32746747,3897.4,3897.3,0.0049789]
[1760681978022,25.58827947,3897.4,3897.3,0.0049789]
[1760681978840,25.40218147,3897.4,3897.3,0.0049789]
[1760681979343,21.39338018,3897.4,3897.3,0.0049789]
[1760681979644,21.4765775,3897.4,3897.3,0.0049789]
[1760681979846,31.3979605,3897.4,3897.3,0.0049789]
[1760681980559,37.8679605,3897.4,3897.3,0.0049789]
[1760681980744,45.25609889,3897.4,3897.3,0.0049789]
[1760681981056,32.26442079,3897.4,3897.3,0.0049789]
[1760681981220,34.8851565,3897.4,3897.3,0.0049789]
[1760681981625,20.6016585,3897.4,3897.3,0.0049789]
[1760681981851,15.8665635,3897.4,3897.3,0.0049789]
[1760681982052,22.0086685,3897.4,3897.3,0.0049789]
[1760681982459,22.4782685,3897.4,3897.3,0.0049789]
[1760681982751,22.86640689,3897.4,3897.3,0.0049789]
[1760681982955,38.37599589,3897.4,3897.3,0.0049789]
[1760681983750,37.9878575,3897.4,3897.3,0.0049789]
[1760681983952,43.2361435,3897.4,3897.3,0.0049789]
[1760681984354,43.62428189,3897.4,3897.3,0.0049789]
[1760681984539,43.62428189,3897.4,3897.0,0.003]
[1760681984540,44.8797262,3897.1,3897.0,0.003]
[1760681984746,46.12001546,3897.1,3897.0,0.003]
[1760681984941,50.00088246,3897.1,3897.0,0.003]
[1760681985143,50.00088246,3897.1,3896.6,1e-08]
[1760681985144,2.56627402,3896.7,3896.6,1e-08]
[1760681985333,19.22562411,3896.0,3895.9,0.00438832]
[1760681985537,15.2338249,3896.0,3895.9,0.00438832]
[1760681985734,16.78984455,3896.0,3895.9,0.00438832]
[1760681985947,22.29261675,3896.0,3895.9,0.00438832]
[1760681986147,20.40064075,3896.0,3895.9,0.00438832]
[1760681987066,38.14963975,3896.0,3895.9,0.00438832]
[1760681987265,39.25083975,3896.0,3895.9,0.00438832]
[1760681987464,34.49448499,3896.0,3895.9,0.00438832]
[1760681988035,40.50019799,3896.0,3895.9,0.00438832]
[1760681988234,0.63586284,3895.6,3893.9,0.0931]
[1760681988487,1.73026284,3895.2,3894.0,0.2452]
[1760681988638,0.4676,3895.7,3894.0,0.2452]
[1760681988639,0.00226284,3894.8,3894.0,0.2452]
[1760681988969,1.73034195,3894.6,3894.0,0.2452]
[1760681989355,0.00234195,3894.5,3894.0,0.2452]
[1760681989560,0.00234195,3894.5,3893.9,0.0931]
[1760681989561,1.7303947,3894.3,3893.9,0.0931]
[1760681989853,0.00242108,3894.1,3893.9,0.0931]
[1760681990057,2.622,3894.0,3893.9,0.0931]
[1760681990784,9.622,3894.0,3893.9,0.0931]
[1760681990989,11.35,3894.0,3893.9,0.0931]
[1760681991163,11.35,3894.0,3889.5,0.0121657]
[1760681991164,13.16267435,3893.9,3893.8,0.0931]
[1760681991558,1.728,3893.9,3893.5,0.0931]
[1760681991783,1.728,3893.7,3893.6,0.2452]
[1760681992093,1.728,3893.7,3893.5,0.0931]
[1760681992299,1.73052661,3893.7,3893.5,0.0931]
[1760681992470,0.03465695,3893.6,3893.5,0.0931]
[1760681993274,0.03465695,3893.6,3892.1,2.56928835]
[1760681993275,0.03465695,3893.6,3893.2,0.0931]
[1760681993572,1.728,3893.4,3893.2,0.0931]
[1760681993767,0.03210643,3893.3,3893.1,0.0931]
[1760681993963,2.626,3893.2,3893.1,0.0941]
[1760681994323,2.626,3893.2,3893.1,0.3393]
[1760681994597,2.65810726,3893.2,3893.1,0.3393]
[1760681995108,4.38610726,3893.2,3893.1,0.3393]
[1760681995598,4.354,3893.2,3893.1,0.3393]
[1760681995763,2.626,3893.2,3893.1,0.63010729]
[1760681995967,0.40296395,3893.3,3893.2,2.56858111]
[1760681996161,2.627,3893.3,3893.2,2.81378111]
[1760681996976,0.7723449,3894.9,3893.2,2.81378111]
[1760681996977,0.00226284,3894.8,3893.7,2.56825127]
[1760681997177,0.40285871,3894.3,3894.1,2.56798465]
[1760681997386,1.12,3894.2,3894.1,2.56798465]
[1760681997681,1.12,3894.2,3894.1,0.25679847]
[1760681997913,2.628,3894.2,3893.2,2.56858111]
[1760681998087,2.628,3894.2,3893.3,0.2452]
[1760681998616,2.628,3894.2,3893.8,2.56818232]
[1760681998906,2.628,3894.2,3893.9,0.2452]
[1760681999216,2.628,3894.2,3894.1,2.56798746]
[1760681999401,2.628,3894.2,3894.1,3.35132291]
[1760681999602,2.628,3894.2,3894.1,0.78333545]
[1760682000289,2.628,3894.2,3894.1,3.35132291]
[1760682000684,2.628,3894.2,3894.1,0.78333545]
[1760682000884,2.628,3894.2,3893.2,0.6336]
[1760682001206,2.628,3894.2,3894.0,2.56799602]
[1760682001418,2.628,3894.2,3894.1,2.56798746]
[1760682001596,2.628,3894.2,3894.1,2.81318746]
[1760682004211,0.40278432,3894.5,3894.4,2.56778964]
[1760682004413,0.40278432,3894.5,3893.1,0.0941]
[1760682004414,0.43488086,3894.5,3893.1,0.0941]
[1760682004719,1.73050022,3894.1,3893.1,0.0941]
[1760682004879,0.00257938,3893.8,3893.1,0.001]
[1760682005220,0.00257938,3893.6,3893.1,0.001]
[1760682005520,1.76268334,3893.6,3893.1,0.001]
[1760682005716,0.00257938,3893.6,3893.1,0.001]
[1760682005891,3.03148921,3893.7,3893.1,0.001]
[1760682006287,3.0289626,3893.7,3893.1,0.001]
[1760682006520,0.03210396,3893.6,3893.1,0.001]
[1760682006717,0.03210396,3893.6,3893.3,2.56851514]
[1760682006718,0.128,3893.4,3893.3,2.56851514]
[1760682006881,0.128,3893.4,3893.3,3.10685077]
[1760682007590,0.128,3893.4,3893.3,0.53833563]
[1760682007888,0.128,3893.4,3893.1,0.001]
[1760682009797,2.626,3893.3,3893.2,2.81378111]
[1760682010303,2.626,3893.3,3893.2,2.56858111]
[1760682010485,2.626,3893.3,3893.1,0.001]
[1760682011883,3.02894595,3893.3,3893.1,0.001]
[1760682013687,0.46570726,3893.2,3893.1,0.001]
[1760682013897,2.19370726,3893.2,3893.1,0.001]
[1760682014103,6.27896437,3893.2,3893.1,0.001]
[1760682014326,2.56880295,3892.9,3891.0,0.2462]
[1760682014530,1.73079051,3892.7,3891.0,0.2462]
[1760682014729,1.73086971,3892.5,3891.1,2.56996736]
[1760682014889,0.46858357,3892.4,3891.0,0.2462]
[1760682015089,0.46858357,3892.4,3890.4,0.0941]
[1760682015090,1.73097532,3892.0,3890.4,0.0941]
[1760682015299,0.69501798,3891.9,3890.7,2.57022424]
[1760682015498,3.0616,3891.8,3889.6,2.57095699]
[1760682015715,2.75561896,3891.7,3890.7,2.5701703]
[1760682015946,2.628,3891.6,3890.8,0.01306129]
[1760682016158,0.03212128,3891.5,3890.2,0.2462]
[1760682016618,0.03212128,3891.5,3891.1,2.569924]
[1760682016619,0.4336,3891.4,3891.1,2.569924]
[1760682016816,0.40314952,3891.5,3890.6,0.2462]
[1760682017012,2.628,3891.4,3891.3,2.56979962]
[1760682017429,2.628,3891.4,3890.8,0.2462]
[1760682017634,2.628,3891.4,3890.4,2.57042977]
[1760682017838,2.628,3891.4,3891.3,2.56983527]
[1760682018046,2.628,3891.4,3891.3,2.81603527]
[1760682018340,0.77282639,3892.7,3891.3,2.81603527]
[1760682018341,1.17591879,3892.7,3891.3,0.25925764]
[1760682018508,2.311,3892.6,3892.0,2.56931499]
[1760682018705,0.03211303,3892.5,3891.1,0.6336]
[1760682018909,0.46571303,3892.5,3891.7,2.56951777]
[1760682019203,0.46571303,3892.5,3891.2,0.47232]
[1760682019204,0.83665133,3893.5,3892.8,2.56884504]
[1760682019408,0.83665133,3893.5,3891.2,0.47232]
[1760682019409,0.00276411,3892.8,3892.0,0.1521]
[1760682019644,2.208608,3892.6,3891.2,0.47232]
[1760682019938,2.631,3892.5,3891.4,2.56976923]
[1760682020124,2.66311303,3892.5,3891.5,0.8320147]
[1760682020321,2.66311303,3892.5,3891.1,0.2462]
[1760682020322,0.03211386,3892.4,3891.1,0.2462]
[1760682020502,0.128,3892.2,3892.0,2.56931713]
[1760682020718,2.631,3892.5,3892.1,0.1521]
[1760682021025,2.631,3893.1,3893.0,2.56865321]
[1760682021464,2.631,3893.1,3892.5,0.2462]
[1760682021759,2.631,3893.1,3893.0,2.56871307]
[1760682022766,0.2293,3894.0,3893.0,2.56871307]
[1760682022767,0.4333,3894.8,3893.1,2.56864709]
[1760682022922,0.03209489,3894.7,3894.3,0.0941]
[1760682023121,2.63,3894.9,3894.1,2.5679774]
[1760682023122,0.46539407,3894.8,3894.1,2.5679774]
[1760682023346,0.83624374,3894.4,3894.2,2.56791643]
[1760682023851,0.83624374,3894.4,3893.8,0.0941]
[1760682023852,2.67009819,3894.3,3893.8,0.0941]
[1760682024043,2.67009819,3894.3,3893.8,2.56817513]
[1760682024044,0.2242,3893.9,3893.8,2.56817513]
[1760682024379,0.2242,3893.9,3892.6,1.9742]
[1760682024380,0.6575,3893.9,3893.4,2.56843871]
[1760682024652,0.46540231,3893.8,3893.1,2.56858877]
[1760682024850,2.637,3893.7,3893.1,2.56858877]
[1760682025053,2.637,3893.7,3893.2,2.5685739]
[1760682025054,0.03210396,3893.6,3893.2,2.5685739]
[1760682025239,0.4333,3893.5,3893.1,2.5686401]
[1760682025433,0.00265854,3893.3,3892.1,0.1521]
[1760682025632,0.4680658,3893.2,3892.1,0.1521]
[1760682025833,3.04097506,3893.1,3892.1,0.1521]
[1760682026045,0.03210891,3893.0,3892.1,0.1521]
[1760682026245,0.03210891,3893.0,3892.0,2.56930725]
[1760682026246,0.2242,3892.9,3892.0,2.56930725]
[1760682026447,0.46541056,3892.8,3891.5,2.56970228]
[1760682026626,7.436078,3892.6,3890.9,0.3403]
[1760682026830,3.10341303,3892.5,3891.6,2.56961927]
[1760682027027,0.00289611,3892.4,3891.5,2.56970196]
[1760682027261,0.4060005,3892.2,3891.4,2.56974623]
[1760682027432,0.03211633,3892.1,3891.5,2.56969671]
[1760682027635,0.03211633,3892.1,3890.9,0.3403]
[1760682027849,0.03211633,3892.1,3890.9,0.0941]
[1760682028036,2.637,3892.0,3891.0,0.2462]
[1760682028247,2.637,3892.0,3891.9,2.56943909]
[1760682028887,2.637,3892.0,3891.3,0.2462]
[1760682029096,2.637,3892.0,3891.3,0.34497728]
[1760682029393,0.68961798,3891.9,3890.5,0.28166298]
[1760682029537,0.25631798,3891.9,3890.6,0.2462]
[1760682029738,0.03211798,3891.9,3891.4,2.56970715]
[1760682029967,0.03211798,3891.9,3891.5,2.5696942]
[1760682030170,0.03211798,3891.9,3891.0,0.001]
[1760682030341,2.637,3892.0,3891.5,2.56964541]
[1760682030534,2.637,3892.0,3891.7,2.56951036]
[1760682030737,0.128,3891.9,3891.7,2.56951036]
[1760682030933,0.128,3891.9,3891.8,2.56950511]
[1760682031171,0.16011798,3891.9,3891.5,2.56964222]
[1760682031370,0.6575,3891.8,3891.2,0.128]